{"text_format":"1","workbook":"xlsx","n_sheets":8,"sheets":["CAP Applications (LMCSL)","北區學校名單","Session","District","School Type","FCA","ID Type","Type"],"not_rendered":{"charts":0,"images":0,"macros":0,"external_links":0,"defined_names":2,"comments":0,"pivot_tables":0},"unopened":[],"bounds":{"document_bytes":16777216,"sheet_cells":100000,"rows_first":2000,"rows_last":500,"rows_between":2000,"halvings":0,"cell_chars":16384,"cell_head_chars":4096},"cells_cut":0,"cells_raw":0,"read":"whole","date_system":"1900"}

{"sheet":"CAP Applications (LMCSL)","index":0,"n_rows":249,"n_cols":12,"rows_kept":249,"cut":false,"hidden":false,"merged":[[0,3,0,8],[1,5,1,8],[0,0,1,2],[20,9,27,9],[20,10,27,11],[20,0,25,8],[1,10,1,11],[26,0,28,8],[28,9,28,11]]}
["申請 落馬洲支線\n跨境學童禁區許可證 適用",null,null,"2026/27 學年跨境學童資料庫",null,null,null,null,null,"常規車牌號碼[載客量]:",null,"[          ]"]
[null,null,null,"校巴營辦商 :",null,null,null,null,null,"申請時段:"]
[]
["編號","區域","學校類別\n(從下拉清單選取)","學校名稱\n(北區學校可從下方參閱北區學校名單)","School Name (English)*","學童英文姓氏\n(全部字母大階)","學童英文名字\n(全部字母大階)","學童中文全名\n(若身份證明文件為簡體字，請以簡體字輸入)","學童身份證明文件類別\n(從下拉清單選取)","學童身份證明文件號碼\n(輸入全部英文字母及數字\n，無需輸入括號或其它符號)","學童出生日期\n(日-月-年)","學童年級\n(從下拉清單選取)"]
["例子","北區","小學","粉嶺官立小學",null,"CHAN","TAI MAN","陳大文","香港身份證","A0123456","2015-12-25","P4"]
[]
[]
[]
[]
[]
[]
[]
[]
[]
[]
[]
[]
[]
[]
[]
["填寫須知: \n1.必須依照本表格格式填寫，切勿擅自更改欄位；否則，有關申請將會延後處理。\n2.切勿自行插入新行，如列位不敷應用，可複印本頁，並必須於每頁右下方蓋上公司印鑑。\n3.遞交時，請按上列次序排列跨境學童禁區許可證的申請表格，以便工作人員核對及查閱。 \n4.申請日期由2026年8月31日（星期一）起，至2027年6月30日（星期三）止（包括首尾兩天）。剩餘配額的申請以日結形式審批。申請必須連同本資料庫的正本、存有資料庫的USB記憶體及其他相關文件，一併遞交教育局北區學校發展組。除政府要求營辦商提交的補充資料或證明文件外，營辦商於第二天再遞交的資料將視作補交當天處理。",null,null,null,null,null,null,null,null,"公司印鑑："]
[]
[]
[]
[]
[]
["由於本資料庫及夾附的文件內存有大量個人資料，請營辦商採取所有切實可行的措施，以確保所持有的個人資料受保障而不受未獲准許的或意外的查閱、處理、\n刪除、喪失或使用所影響，及必須符合《個人資料（私隱）條例》保障資料原則的其他規定。"]
[]
[null,null,null,null,null,null,null,null,null,"第 __________ 頁，共 __________　頁。"]
[]
[]
[]
[]
[{"$f":"IF($F34<>\"\",ROW()-1,\"\")","v":""}]
[""]
[""]
[""]
[""]
[""]
[""]
[""]
[""]
[""]
[""]
[""]
[""]
[""]
[""]
[""]
[""]
[""]
[""]
[""]
[""]
[""]
[""]
[""]
[""]
[""]
[""]
[""]
[""]
[""]
[""]
[""]
[""]
[""]
[""]
[""]
[""]
[""]
[""]
[""]
[""]
[""]
[""]
[""]
[""]
[""]
[""]
[""]
[""]
[""]
[""]
[""]
[""]
[""]
[""]
[""]
[""]
[""]
[""]
[""]
[""]
[""]
[""]
[""]
[{"$f":"IF($F98<>\"\",ROW()-1,\"\")","v":""}]
[""]
[""]
[""]
[""]
[""]
[""]
[""]
[""]
[""]
[""]
[""]
[""]
[""]
[""]
[""]
[""]
[""]
[""]
[""]
[""]
[""]
[""]
[""]
[""]
[""]
[""]
[""]
[""]
[""]
[""]
[""]
[""]
[""]
[""]
[""]
[""]
[""]
[""]
[""]
[""]
[""]
[""]
[""]
[""]
[""]
[""]
[""]
[""]
[""]
[""]
[""]
[""]
[""]
[""]
[""]
[""]
[""]
[""]
[""]
[""]
[""]
[""]
[""]
[{"$f":"IF($F162<>\"\",ROW()-1,\"\")","v":""}]
[""]
[""]
[""]
[""]
[""]
[""]
[""]
[""]
[""]
[""]
[""]
[""]
[""]
[""]
[""]
[""]
[""]
[""]
[""]
[""]
[""]
[""]
[""]
[""]
[""]
[""]
[""]
[""]
[""]
[""]
[""]
[""]
[""]
[""]
[""]
[""]
[""]
[""]
[""]
[""]
[""]
[""]
[""]
[""]
[""]
[""]
[""]
[""]
[""]
[""]
[""]
[""]
[""]
[""]
[""]
[""]
[""]
[""]
[""]
[""]
[""]
[""]
[""]
[{"$f":"IF($F226<>\"\",ROW()-1,\"\")","v":""}]
[""]
[""]
[""]
[""]
[""]
[""]
[""]
[""]
[""]
[""]
[""]
[""]
[""]
[""]
[""]
[""]
[""]
[""]
[""]
[""]
[""]
[""]
[""]

{"sheet":"北區學校名單","index":1,"n_rows":32,"n_cols":6,"rows_kept":32,"cut":false,"hidden":false,"merged":[[0,1,1,1],[0,3,1,3],[0,5,1,5],[23,1,24,1]]}
[null,"北區中學名單",null,"北區小學名單",null,"北區幼稚園名單"]
[]
[null,"明愛粉嶺陳震夏中學",null,"鳳溪創新小學",null,"佛教沈東福幼稚園"]
[null,"宣道會陳朱素華紀念中學",null,"鳳溪第一小學",null,"神召會華人同工聯會彩蒲幼稚園"]
[null,"新界喇沙中學",null,"香海正覺蓮社佛教陳式宏學校",null,"神召會華人同工聯會景盛幼稚園"]
[null,"風采中學（教育評議會主辦）",null,"香海正覺蓮社佛教正慧小學",null,"中華基督教青年會上水幼稚園"]
[null,"粉嶺救恩書院",null,"金錢村何東學校",null,"基督徒信望愛堂華明幼稚園"]
[null,"粉嶺禮賢會中學",null,"李志達紀念學校",null,"基督教香港信義會祥華幼稚園"]
[null,"鳳溪廖萬石堂中學",null,"聖公會榮真小學",null,"基督教香港信義會祥華幼稚園"]
[null,"鳳溪第一中學",null,"石湖墟公立學校",null,"基督教粉嶺神召會恩光幼稚園"]
[null,"香海正覺蓮社佛教馬錦燦紀念英文中學",null,"曾梅千禧學校",null,"粉嶺神召會幼稚園"]
[null,"香港道教聯合會鄧顯紀念中學",null,"東莞學校",null,"粉嶺浸信會呂明才幼稚園"]
[null,"保良局馬錦明中學",null,"東華三院港九電器商聯會小學",null,"鳳溪幼稚園"]
[null,"聖公會陳融中學",null,"東華三院馬錦燦紀念小學",null,"香海正覺蓮社佛教慧光嘉福幼稚園"]
[null,"聖芳濟各書院",null,"上水惠州公立學校",null,"香海正覺蓮社佛教慧光幼稚園"]
[null,"中華基督教會基新中學",null,"育賢學校",null,"香港宣教會優質幼兒學校"]
[null,"田家炳中學",null,"上水宣道小學",null,"香港道教聯合會蓬瀛通善皇后山幼稚園"]
[null,"東華三院甲寅年總理中學",null,"基督教粉嶺神召會小學",null,"金錢村何東幼稚園"]
[null,"東華三院李嘉誠中學",null,"粉嶺官立小學",null,"九龍城浸信會嘉福幼稚園"]
[null,"粉嶺官立中學",null,"粉嶺公立學校",null,"保良局莊啓程夫人幼稚園"]
[null,"上水官立中學",null,"方樹福堂基金方樹泉小學",null,"保良局葉吳彬彬皇后山幼稚園"]
[null,"基督教香港信義會心誠中學",null,"鳳溪廖潤琛紀念學校",null,"上水堂幼稚園"]
[null,null,null,"香海正覺蓮社佛教正覺蓮社學校",null,"上水禮賢會幼稚園"]
[null,"北區特殊學校名單",null,"五旬節靳茂生小學",null,"上水惠州幼稚園（分校）"]
[null,null,null,"五旬節于良發小學",null,"太平幼稚園"]
[null,"香海正覺蓮社佛教普光學校",null,"寶血會培靈學校",null,"真理浸信會何袁惠琼幼稚園"]
[null,"救世軍石湖學校",null,"聖公會嘉福榮真小學",null,"東華三院文頴怡幼稚園"]
[null,null,null,"打鼓嶺嶺英公立學校",null,"東華三院徐展堂幼稚園"]
[null,null,null,"救世軍中原慈善基金皇后山學校",null,"明愛聖芳濟各幼稚園"]
[null,null,null,"東華三院曾憲備小學",null,"麥克萊國際幼稚園"]
[null,null,null,"福德學社小學"]
[null,null,null,"沙頭角中心小學"]

{"sheet":"Session","index":2,"n_rows":3,"n_cols":1,"rows_kept":3,"cut":false,"hidden":true,"merged":[]}
["Full Day"]
["Morning"]
["Afternoon"]

{"sheet":"District","index":3,"n_rows":18,"n_cols":1,"rows_kept":18,"cut":false,"hidden":true,"merged":[]}
["Central and Western District"]
["Wan Chai"]
["Hong Kong East"]
["Southern"]
["Islands"]
["Yau Tsim and Mong Kok"]
["Sham Shui Po"]
["Kowloon City"]
["Wong Tai Sin"]
["Kwun Tong"]
["Kwai Chung and Tsing Yi"]
["Tsuen Wan"]
["Tuen Mun"]
["Yuen Long"]
["North"]
["Tai Po"]
["Sha Tin"]
["Sai Kung"]

{"sheet":"School Type","index":4,"n_rows":3,"n_cols":1,"rows_kept":3,"cut":false,"hidden":true,"merged":[]}
["Kindergarten"]
["Primary School"]
["Special School"]

{"sheet":"FCA","index":5,"n_rows":8,"n_cols":2,"rows_kept":8,"cut":false,"hidden":true,"merged":[]}
["key","value"]
["Lok Ma Chau","LMC"]
["Sha Tau Kok","STK"]
["Chung Ying Street","CYS"]
["Ta Kwu Ling","TKL"]
["Heung Yuen Wai Control Point","HYW"]
["Shenzhen Bay Port","SBP"]
["Hong Kong-Zhuhai-Macao Bridge Hong Kong Port","HZMB"]

{"sheet":"ID Type","index":6,"n_rows":17,"n_cols":2,"rows_kept":17,"cut":false,"hidden":true,"merged":[]}
["key","value"]
["HK Identity Card","ID"]
["Chinese Two-way Entry Permit","C2P"]
["Passport","PSP"]
["Birth Certificate","BC"]
["Chinese One-way Entry Permit","C1P"]
["Certificate of Entitlement to the Right of Abode in HKSAR","CE"]
["Chinese Fisherman Cert/Permit","CFC"]
["Certificate of Identity","CI"]
["Chinese Identity Card","CID"]
["Chinese Two-way Entry Permit (Taiwan Travel)","CTP"]
["HM's Force Identity Card","HMI"]
["Macau Identity Card","MID"]
["Recognizance","RCG"]
["Hong Kong Re-Entry Permit","RP"]
["Vietnamese Refugee Card","VIE"]
["Others","OTH"]

{"sheet":"Type","index":7,"n_rows":2,"n_cols":1,"rows_kept":2,"cut":false,"hidden":true,"merged":[]}
["type"]
["CBS"]